Workbook

Sheet MV
A1: 1 | H1: =IF((ABS(MAX(H14:H1230))+ABS(MIN(H14:H1230)))=0,"Hide","'") -> ' | I1: ' | J1: Hide | K1: Hide | L1: Hide | M1: Hide | N1: Hide | O1: Hide | P1: Hide | Q1: Hide | R1: Hide | S1: Hide | T1: Hide | U1: Hide | V1: Hide | W1: Hide | X1: Hide | AA1: =IF((ABS(MAX(AA14:AA1230))+ABS(MIN(AA14:AA1230)))=0,"Hide","'") -> Hide | AB1: =IF((ABS(MAX(AB14:AB1230))+ABS(MIN(AB14:AB1230)))=0,"Hide","'") -> Hide | AC1: =IF((ABS(MAX(AC14:AC1230))+ABS(MIN(AC14:AC1230)))=0,"Hide","'") -> Hide | AD1: =IF((ABS(MAX(AD14:AD1230))+ABS(MIN(AD14:AD1230)))=0,"Hide","'") -> Hide | AE1: =IF((ABS(MAX(AE14:AE1230))+ABS(MIN(AE14:AE1230)))=0,"Hide","'") -> Hide | AK1: 1
A2: 1 | B2: Приложение №6 | AK2: 1
A3: 1 | C3: Е М Е С Е Ч Е Н / Т Р И М Е С Е Ч Е Н О Т Ч Е Т НА ДЪРЖАВНИТЕ ИНВЕСТИЦИОННИ ЗАЕМИ (ДИЗ) ЗА 2019 г. | AK3: 1
A4: 1 | C4: на МТИТС - ЦУ | AK4: 1
A5: 1 | C5: от 01.01.2019 г. до 30.11.2019 г. | AK5: 1
A6: 1 | E6: Общо | F6: Общо | G6: ДИЗ №1,админ. | H6: ДИЗ №2,админ. | I6: ДИЗ №3,админ. | J6: ДИЗ №4,админ. | K6: ДИЗ №5,админ. | L6: ДИЗ №6,админ. | M6: ДИЗ №7,админ. | N6: ДИЗ №8,админ. | O6: ДИЗ №9,админ. | P6: ДИЗ №10,админ. | Q6: ДИЗ №11,админ. | R6: ДИЗ №12,админ. | S6: ДИЗ №13,админ. | T6: ДИЗ №14,админ. | U6: ДИЗ №15,админ. | V6: ДИЗ №16,админ. | W6: ДИЗ №17,админ. | X6: ДИЗ №18,админ. | Y6: Общо | Z6: ДИЗ №1с краен | AA6: ДИЗ №2 с краен | AB6: ДИЗ №3 с краен | AC6: ДИЗ №4 с краен | AD6: ДИЗ №5 с краен | AE6: ДИЗ №6 с краен | AK6: 1
A7: 1 | C7: П О К А З А Т Е Л И | E7: ДИЗ | F7: ДИЗ | G7: по бюджета | H7: по бюджета | I7: по бюджета | J7: по бюджета | K7: по бюджета | L7: по бюджета | M7: по бюджета | N7: по бюджета | O7: по бюджета | P7: по бюджета | Q7: по бюджета | R7: по бюджета | S7: по бюджета | T7: по бюджета | U7: по бюджета | V7: по бюджета | W7: по бюджета | X7: по бюджета | Y7: ДИЗ с краен | Z7: бенефициент | AA7: бенефициент | AB7: бенефициент | AC7: бенефициент | AD7: бенефициент | AE7: бенефициент | AK7: 1
A8: 1 | F8: администрирани | G8: на ПРБ | H8: на ПРБ | I8: на ПРБ | J8: на ПРБ | K8: на ПРБ | L8: на ПРБ | M8: на ПРБ | N8: на ПРБ | O8: на ПРБ | P8: на ПРБ | Q8: на ПРБ | R8: на ПРБ | S8: на ПРБ | T8: на ПРБ | U8: на ПРБ | V8: на ПРБ | W8: на ПРБ | X8: на ПРБ | Y8: бенефициент | Z8: търг.дружество | AA8: търг.дружество | AB8: търг.дружество | AC8: търг.дружество | AD8: търг.дружество | AE8: търг.дружество | AK8: 1
A9: 1 | C9: (в лева) | E9: 2019 г. | F9: по бюджета | G9: Дунав мост | H9: Дунав мост | I9: Пловдив-Свиленград | Y9: търговско | Z9: Пристанище Бургас ЕАД | AK9: 1
A10: 1 | F10: на ПРБ | G10: ЕИБ | H10: KFW | I10: ЕИБ | Y10: дружество | AK10: 1
A11: 1 | E11: к.2+к.3 | F11: =$E$9 -> 2019 г. | G11: 2019 г. | H11: 2019 г. | I11: 2019 г. | J11: 2019 г. | K11: 2019 г. | L11: 2019 г. | M11: 2019 г. | N11: 2019 г. | O11: 2019 г. | P11: 2019 г. | Q11: 2019 г. | R11: 2019 г. | S11: 2019 г. | T11: 2019 г. | U11: 2019 г. | V11: 2019 г. | W11: 2019 г. | X11: 2019 г. | Y11: 2019 г. | Z11: 2019 г. | AA11: 2019 г. | AB11: 2019 г. | AC11: 2019 г. | AD11: 2019 г. | AE11: 2019 г. | AK11: 1
A12: 1 | C12: A | E12: 1 | F12: 2 | G12: 2.1 | H12: 2.2 | I12: 2.3 | J12: 2.4 | K12: 2.5 | L12: 2.6 | M12: 2.7 | N12: 2.8 | O12: 2.9 | P12: 2.1 | Q12: 2.11 | R12: 2.12 | S12: 2.13 | T12: 2.14 | U12: 2.15 | V12: 2.16 | W12: 2.17 | X12: 2.18 | Y12: 3 | Z12: 3.1 | AA12: 3.2 | AB12: 3.3 | AC12: 3.4 | AD12: 3.5 | AE12: 3.6 | AK12: 1
A13: 1 | AK13: 1
A14: 1 | C14: I. ПРИХОДИ, ПОМОЩИ И ДАРЕНИЯ | D14: 01 | E14: =SUBTOTAL(9,E16:E94) -> 1309385 | F14: 0 | G14: 0 | H14: 0 | I14: 0 | J14: 0 | K14: 0 | L14: 0 | M14: 0 | N14: 0 | O14: 0 | P14: 0 | Q14: 0 | R14: 0 | S14: 0 | T14: 0 | U14: 0 | V14: 0 | W14: 0 | X14: 0 | Y14: 1309385 | Z14: 1309385 | AA14: 0 | AB14: 0 | AC14: 0 | AD14: 0 | AE14: 0 | AK14: =IF(CELL("protect",AC14),0,1) -> 0
A15: 1 | AK15: =IF(CELL("protect",AC15),0,1) -> 0
A16: =IF(MAX(E16:AF16)=0,IF(MIN(E16:AF16)=0,0,1),1) -> 0 | B16: 1. | C16: Данъчно-осигурителни приходи | E16: =SUBTOTAL(9,E17:E39) -> 0 | F16: 0 | G16: 0 | H16: 0 | I16: 0 | J16: 0 | K16: 0 | L16: 0 | M16: 0 | N16: 0 | O16: 0 | P16: 0 | Q16: 0 | R16: 0 | S16: 0 | T16: 0 | U16: 0 | V16: 0 | W16: 0 | X16: 0 | Y16: 0 | Z16: 0 | AA16: 0 | AB16: 0 | AC16: 0 | AD16: 0 | AE16: 0 | AK16: =IF(CELL("protect",AC16),0,1) -> 0
A17: 0 | C17: Данък върху доходите на физически лица | D17: 01-00 | E17: =F17+Y17 -> 0 | F17: =SUM(G17:X17) -> 0 | Y17: =SUM(Z17:AE17) -> 0 | AK17: =IF(CELL("protect",AC17),0,1) -> 1
A18: 0 | C18: Корпоративен данък | D18: 02-00 | E18: =F18+Y18 -> 0 | F18: =SUM(G18:X18) -> 0 | Y18: =SUM(Z18:AE18) -> 0 | AK18: =IF(CELL("protect",AC18),0,1) -> 1
A19: 0 | C19: Данъци върху дивидентите, ликвидационните дялове и доходите на местни и чуждестранни лица | D19: 04-00 | E19: =F19+Y19 -> 0 | F19: =SUM(G19:X19) -> 0 | Y19: =SUM(Z19:AE19) -> 0 | AK19: 1
A20: 0 | C20: Осигурителни вноски | D20: 08-00 | E20: =SUBTOTAL(9,E21:E27) -> 0 | F20: 0 | G20: 0 | H20: 0 | I20: 0 | J20: 0 | K20: 0 | L20: 0 | M20: 0 | N20: 0 | O20: 0 | P20: 0 | Q20: 0 | R20: 0 | S20: 0 | T20: 0 | U20: 0 | V20: 0 | W20: 0 | X20: 0 | Y20: 0 | Z20: 0 | AA20: 0 | AB20: 0 | AC20: 0 | AD20: 0 | AE20: 0 | AK20: 0
A21: 0 | C21: - вноски за работници и служители от работодатели | D21: 08-01 | E21: =F21+Y21 -> 0 | F21: =SUM(G21:X21) -> 0 | Y21: =SUM(Z21:AE21) -> 0
A22: 0 | C22: - вноски от работници и служители (лична вноска) | D22: 08-02 | E22: 0 | F22: 0 | Y22: 0
A23: 0 | C23: - вноски от самонаети лица (самоосигуряващи се лица) | D23: 08-04 | E23: 0 | F23: 0 | Y23: 0
A24: 0 | C24: - вноски за други категории осигурени лица | D24: 08-09 | E24: 0 | F24: 0 | Y24: 0
A25: 0 | C25: - вноски по чл. 4б и 4в от КСО за сметка на осигурителя | D25: 08-11 | E25: 0 | F25: 0 | Y25: 0
A26: 0 | C26: - вноски по чл. 4б от КСО за сметка на осигурените лица | D26: 08-12 | E26: 0 | F26: 0 | Y26: 0
A27: 0 | C27: - вноски по чл. 4б от КСО от самонаети лица (самоосигур. се лица) | D27: 08-14 | E27: 0 | F27: 0 | Y27: 0
A28: 0 | C28: Здравноосигурителни вноски | D28: 10-00 | E28: =SUBTOTAL(9,E29:E32) -> 0 | F28: 0 | G28: 0 | H28: 0 | I28: 0 | J28: 0 | K28: 0 | L28: 0 | M28: 0 | N28: 0 | O28: 0 | P28: 0 | Q28: 0 | R28: 0 | S28: 0 | T28: 0 | U28: 0 | V28: 0 | W28: 0 | X28: 0 | Y28: 0 | Z28: 0 | AA28: 0 | AB28: 0 | AC28: 0 | AD28: 0 | AE28: 0 | AK28: 0
A29: 0 | C29: - здравноосиг.вноски за работници и служители от работодатели | D29: 10-01 | E29: =F29+Y29 -> 0 | F29: =SUM(G29:X29) -> 0 | Y29: =SUM(Z29:AE29) -> 0
A30: 0 | C30: - здравноосиг.вноски от работници и служители (лична вноска) | D30: 10-02 | E30: =F30+Y30 -> 0 | F30: =SUM(G30:X30) -> 0 | Y30: =SUM(Z30:AE30) -> 0
A31: 0 | C31: - здравноосиг.вноски от самонаети (самоосигуряващи се лица) | D31: 10-04 | E31: =F31+Y31 -> 0 | F31: =SUM(G31:X31) -> 0 | Y31: =SUM(Z31:AE31) -> 0
A32: 0 | C32: - здравноосигурителни вноски за други категории осигурени лица | D32: 10-07 | E32: =F32+Y32 -> 0 | F32: =SUM(G32:X32) -> 0 | Y32: =SUM(Z32:AE32) -> 0
A33: 0 | C33: Имуществени и други местни данъци | D33: 13-00 | E33: =F33+Y33 -> 0 | F33: =SUM(G33:X33) -> 0 | Y33: =SUM(Z33:AE33) -> 0 | AK33: 1
A34: 0 | C34: Данък върху добавената стойност | D34: 14-00 | E34: 0 | F34: 0 | Y34: 0 | AK34: 1
A35: 0 | C35: Акцизи | D35: 15-00 | E35: 0 | F35: 0 | Y35: 0 | AK35: 1
A36: 0 | C36: Данък върху застрахователните премии | D36: 16-00 | E36: =F36+Y36 -> 0 | F36: =SUM(G36:X36) -> 0 | Y36: =SUM(Z36:AE36) -> 0 | AK36: 1
A37: 0 | C37: Други данъци по Закона за корпоративното подоходно облагане | D37: 17-00 | E37: 0 | F37: 0 | Y37: 0 | AK37: 1
A38: 0 | C38: Мита и митнически такси | D38: 19-00 | E38: 0 | F38: 0 | Y38: 0 | AK38: 1
A39: 0 | C39: Други данъци | D39: 20-00 | E39: 0 | F39: 0 | Y39: 0 | AK39: 1
A40: 1 | B40: 2. | C40: Неданъчни приходи | E40: =SUBTOTAL(9,E41:E63) -> 1309385 | F40: 0 | G40: 0 | H40: 0 | I40: 0 | J40: 0 | K40: 0 | L40: 0 | M40: 0 | N40: 0 | O40: 0 | P40: 0 | Q40: 0 | R40: 0 | S40: 0 | T40: 0 | U40: 0 | V40: 0 | W40: 0 | X40: 0 | Y40: 1309385 | Z40: 1309385 | AA40: 0 | AB40: 0 | AC40: 0 | AD40: 0 | AE40: 0 | AK40: 0
A41: 1 | C41: Приходи и доходи от собственост | D41: 24-00 | E41: =SUBTOTAL(9,E42:E46) -> 1347117 | F41: 0 | G41: 0 | H41: 0 | I41: 0 | J41: 0 | K41: 0 | L41: 0 | M41: 0 | N41: 0 | O41: 0 | P41: 0 | Q41: 0 | R41: 0 | S41: 0 | T41: 0 | U41: 0 | V41: 0 | W41: 0 | X41: 0 | Y41: 1347117 | Z41: 1347117 | AA41: 0 | AB41: 0 | AC41: 0 | AD41: 0 | AE41: 0 | AK41: 0
A42: 0 | C42: - вноски от приходи на държ.(общ.) предприятия и институции | D42: 24-01 | E42: =F42+Y42 -> 0 | F42: =SUM(G42:X42) -> 0 | Y42: =SUM(Z42:AE42) -> 0 | AK42: 1
A43: 0 | C43: - нетни приходи от продажби на услуги, стоки и продукция | D43: 24-04 | E43: 0 | F43: 0 | Y43: 0 | AK43: 1
A44: 0 | C44: - приходи от наеми на имущество | D44: 24-05 | E44: 0 | F44: 0 | Y44: 0 | AK44: 1
A45: 0 | C45: - приходи от наеми на земя | D45: 24-06 | E45: 0 | F45: 0 | Y45: 0 | AK45: 1
A46: 1 | C46: - приходи от лихви | E46: 1347117 | F46: 0 | Y46: 1347117 | Z46: 1347117 | AK46: 1
A47: =IF(MAX(E47:AF47)=0,IF(MIN(E47:AF47)=0,0,1),1) -> 0 | C47: Държавни такси | D47: 25-00 | E47: 0 | F47: 0 | Y47: 0 | AK47: 1
A48: 0 | C48: Съдебни такси | D48: 26-00 | E48: 0 | F48: 0 | Y48: 0 | AK48: 1
A49: 0 | C49: Общински такси | D49: 27-00 | E49: 0 | F49: 0 | Y49: 0 | AK49: 1
A50: 0 | C50: Глоби, санкции и наказателни лихви | D50: 28-00 | E50: =SUBTOTAL(9,E51:E53) -> 0 | F50: 0 | G50: 0 | H50: 0 | I50: 0 | J50: 0 | K50: 0 | L50: 0 | M50: 0 | N50: 0 | O50: 0 | P50: 0 | Q50: 0 | R50: 0 | S50: 0 | T50: 0 | U50: 0 | V50: 0 | W50: 0 | X50: 0 | Y50: 0 | Z50: 0 | AA50: 0 | AB50: 0 | AC50: 0 | AD50: 0 | AE50: 0 | AK50: 0
A51: 0 | C51: - конфискувани средства и приходи от продажби на конфискувани и придобити от залог вещи | D51: 28-01 | E51: =F51+Y51 -> 0 | F51: =SUM(G51:X51) -> 0 | Y51: =SUM(Z51:AE51) -> 0 | AK51: =IF(CELL("protect",AC51),0,1) -> 1
A52: 0 | C52: - глоби, санкции, неустойки, наказателни лихви, обезщетения и начети | D52: 28-02 | E52: =F52+Y52 -> 0 | F52: =SUM(G52:X52) -> 0 | Y52: =SUM(Z52:AE52) -> 0 | AK52: =IF(CELL("protect",AC52),0,1) -> 1
A53: 0 | C53: - наказателни лихви за данъци, мита и осигурителни вноски | D53: 28-09 | E53: =F53+Y53 -> 0 | F53: =SUM(G53:X53) -> 0 | Y53: =SUM(Z53:AE53) -> 0 | AK53: =IF(CELL("protect",AC53),0,1) -> 1
A54: 1 | C54: Други приходи | D54: 36-00 | E54: -37732 | F54: 0 | Y54: -37732 | Z54: -37732 | AK54: 1
A55: 0 | C55: Внесени ДДС и други данъци върху продажбите | D55: 37-00 | E55: 0 | F55: 0 | Y55: 0 | AK55: 1
A56: 0 | C56: Постъпления от продажба на нефинансови активи | D56: 40-00 | E56: =SUBTOTAL(9,E57:E61) -> 0 | F56: 0 | G56: 0 | H56: 0 | I56: 0 | J56: 0 | K56: 0 | L56: 0 | M56: 0 | N56: 0 | O56: 0 | P56: 0 | Q56: 0 | R56: 0 | S56: 0 | T56: 0 | U56: 0 | V56: 0 | W56: 0 | X56: 0 | Y56: 0 | Z56: 0 | AA56: 0 | AB56: 0 | AC56: 0 | AD56: 0 | AE56: 0 | AK56: 0
A57: 0 | C57: Постъпления от продажба на ДМА (40-21...40-29) | E57: =F57+Y57 -> 0 | F57: =SUM(G57:X57) -> 0 | Y57: =SUM(Z57:AE57) -> 0 | AK57: 1
A58: 0 | C58: Постъпления от продажба на нематериални дълготрайни активи | D58: 40-30 | E58: 0 | F58: 0 | Y58: 0 | AK58: 1
A59: 0 | C59: Постъпления oт продажба на квоти за емисии на парникови газове | D59: 40-39 | E59: =F59+Y59 -> 0 | F59: =SUM(G59:X59) -> 0 | Y59: =SUM(Z59:AE59) -> 0 | AK59: 1
A60: 0 | C60: Постъпления от продажба на земя | D60: 40-40 | E60: 0 | F60: 0 | Y60: 0 | AK60: 1
A61: 0 | C61: Постъпления от продажба на земеделска продукция | D61: 40-72 | E61: 0 | F61: 0 | Y61: 0 | AK61: 1
A62: 0 | C62: Приходи от концесии | D62: 41-00 | E62: 0 | F62: 0 | Y62: 0 | AK62: 1
A63: 0 | C63: Приходи от лицензии за ползване на държавни/общински активи | D63: 42-00 | E63: 0 | F63: 0 | Y63: 0 | AK63: 1
A64: 0 | B64: 3. | C64: Помощи и дарения | E64: =SUBTOTAL(9,E65:E94) -> 0 | F64: 0 | G64: 0 | H64: 0 | I64: 0 | J64: 0 | K64: 0 | L64: 0 | M64: 0 | N64: 0 | O64: 0 | P64: 0 | Q64: 0 | R64: 0 | S64: 0 | T64: 0 | U64: 0 | V64: 0 | W64: 0 | X64: 0 | Y64: 0 | Z64: 0 | AA64: 0 | AB64: 0 | AC64: 0 | AD64: 0 | AE64: 0 | AK64: 0
A65: 0 | C65: Помощи и дарения от страната | D65: 45-00 | E65: =SUBTOTAL(9,E66:E67) -> 0 | F65: 0 | G65: 0 | H65: 0 | I65: 0 | J65: 0 | K65: 0 | L65: 0 | M65: 0 | N65: 0 | O65: 0 | P65: 0 | Q65: 0 | R65: 0 | S65: 0 | T65: 0 | U65: 0 | V65: 0 | W65: 0 | X65: 0 | Y65: 0 | Z65: 0 | AA65: 0 | AB65: 0 | AC65: 0 | AD65: 0 | AE65: 0 | AK65: 0
A66: 0 | C66: Текущи помощи и дарения от страната | D66: 45-01 | E66: =F66+Y66 -> 0 | F66: =SUM(G66:X66) -> 0 | Y66: =SUM(Z66:AE66) -> 0
A67: 0 | C67: Капиталови помощи и дарения от страната | D67: 45-03 | E67: =F67+Y67 -> 0 | F67: =SUM(G67:X67) -> 0 | Y67: =SUM(Z67:AE67) -> 0
A68: 0 | C68: Помощи и дарения от чужбина | D68: 46-00 | E68: =SUBTOTAL(9,E69:E76) -> 0 | F68: 0 | G68: 0 | H68: 0 | I68: 0 | J68: 0 | K68: 0 | L68: 0 | M68: 0 | N68: 0 | O68: 0 | P68: 0 | Q68: 0 | R68: 0 | S68: 0 | T68: 0 | U68: 0 | V68: 0 | W68: 0 | X68: 0 | Y68: 0 | Z68: 0 | AA68: 0 | AB68: 0 | AC68: 0 | AD68: 0 | AE68: 0 | AK68: 0
A69: 0 | C69: Текущи помощи и дарения от Европейския съюз | D69: 46-10 | E69: =F69+Y69 -> 0 | F69: =SUM(G69:X69) -> 0 | Y69: =SUM(Z69:AE69) -> 0
A70: 0 | C70: Капиталови помощи и дарения от Европейския съюз | D70: 46-20 | E70: 0 | F70: 0 | Y70: 0
A71: 0 | C71: Текущи помощи и дарения от други държави | D71: 46-30 | E71: 0 | F71: 0 | Y71: 0
A72: 0 | C72: Капиталови помощи и дарения от други държави | D72: 46-40 | E72: 0 | F72: 0 | Y72: 0
A73: 0 | C73: Текущи помощи и дарения от други международни организации | D73: 46-50 | E73: 0 | F73: 0 | Y73: 0
A74: 0 | C74: Капиталови помощи и дарения от други международни организации | D74: 46-60 | E74: 0 | F74: 0 | Y74: 0
A75: 0 | C75: Други текущи помощи и дарения от чужбина | D75: 46-70 | E75: 0 | F75: 0 | Y75: 0
A76: 0 | C76: Други капиталови помощи и дарения от чужбина | D76: 46-80 | E76: 0 | F76: 0 | Y76: 0
A77: 0 | C77: Получени чрез небюджетни предприятия средства от КФП по международни и други програми | D77: 47-00 | E77: =SUBTOTAL(9,E78:E85) -> 0 | F77: 0 | G77: 0 | H77: 0 | I77: 0 | J77: 0 | K77: 0 | L77: 0 | M77: 0 | N77: 0 | O77: 0 | P77: 0 | Q77: 0 | R77: 0 | S77: 0 | T77: 0 | U77: 0 | V77: 0 | W77: 0 | X77: 0 | Y77: 0 | Z77: 0 | AA77: 0 | AB77: 0 | AC77: 0 | AD77: 0 | AE77: 0 | AK77: 0
A78: 0 | C78: Получени чрез нефинансови предприятия текущи трансфери от КФП по международни и други програми | D78: 47-43 | E78: 0 | F78: 0 | Y78: 0
A79: =IF(MAX(E79:AF79)=0,IF(MIN(E79:AF79)=0,0,1),1) -> 0 | C79: Получени чрез финансови институции текущи трансфери от КФП по международни и други програми | D79: 47-44 | E79: 0 | F79: 0 | Y79: 0
A80: 0 | C80: Получени чрез нестопански организации текущи трансфери от КФП по международни и други програми | D80: 47-45 | E80: 0 | F80: 0 | Y80: 0
A81: 0 | C81: Получени чрез предприятия от чужбина текущи трансфери от КФП по международни и други програми | D81: 47-49 | E81: 0 | F81: 0 | Y81: 0
A82: 0 | C82: Получени чрез нефинансови предприятия капиталови трансфери от КФП по международни и други програми | D82: 47-51 | E82: 0 | F82: 0 | Y82: 0
A83: 0 | C83: Получени чрез финансови институции капиталови трансфери от КФП по международни и други програми | D83: 47-52 | E83: 0 | F83: 0 | Y83: 0
A84: 0 | C84: Получени чрез нестопански организации капиталови трансфери от КФП по международни и други програми | D84: 47-53 | E84: 0 | F84: 0 | Y84: 0
A85: 0 | C85: Получени чрез предприятия от чужбина капиталови трансфери от КФП по международни и други програми | D85: 47-59 | E85: 0 | F85: 0 | Y85: 0
A86: 0 | C86: Разпределени към администратори от чужбина средства по международни програми и договори (-) | D86: 48-00 | E86: =SUBTOTAL(9,E87:E94) -> 0 | F86: 0 | G86: 0 | H86: 0 | I86: 0 | J86: 0 | K86: 0 | L86: 0 | M86: 0 | N86: 0 | O86: 0 | P86: 0 | Q86: 0 | R86: 0 | S86: 0 | T86: 0 | U86: 0 | V86: 0 | W86: 0 | X86: 0 | Y86: 0 | Z86: 0 | AA86: 0 | AB86: 0 | AC86: 0 | AD86: 0 | AE86: 0
A87: 0 | C87: Разпределени към чужбина текущи трансфери по програми на Европейския съюз (-) | D87: 48-10 | E87: 0 | F87: 0 | Y87: 0
A88: 0 | C88: Разпределени към чужбина капиталови трансфери по програми на Европейския съюз (-) | D88: 48-20 | E88: 0 | F88: 0 | Y88: 0
A89: 0 | C89: Разпределени към чужбина текущи трансфери по програми на други държави (-) | D89: 48-30 | E89: 0 | F89: 0 | Y89: 0
A90: 0 | C90: Разпределени към чужбина капиталови трансфери по програми на други държави (-) | D90: 48-40 | E90: 0 | F90: 0 | Y90: 0
A91: 0 | C91: Разпределени към чужбина текущи трансфери по програми на други международни организации (-) | D91: 48-50 | E91: 0 | F91: 0 | Y91: 0
A92: 0 | C92: Разпределени към чужбина капиталови трансфери по програми на други международни организации (-) | D92: 48-60 | E92: 0 | F92: 0 | Y92: 0
A93: 0 | C93: Разпределени към чужбина текущи трансфери по други чуждестранни дарения и помощи (-) | D93: 48-70 | E93: 0 | F93: 0 | Y93: 0
A94: 0 | C94: Разпределени към чужбина капиталови трансфери по други чуждестранни дарения и помощи (-) | D94: 48-80 | E94: =F94+Y94 -> 0 | F94: =SUM(G94:X94) -> 0 | Y94: =SUM(Z94:AE94) -> 0
A95: 1 | AK95: 0
A96: 1 | C96: II. РАЗХОДИ | D96: 02 | E96: =E98 -> 5729032 | F96: 4382141 | G96: 1662664 | H96: 60066 | I96: 2659411 | J96: 0 | K96: 0 | L96: 0 | M96: 0 | N96: 0 | O96: 0 | P96: 0 | Q96: 0 | R96: 0 | S96: 0 | T96: 0 | U96: 0 | V96: 0 | W96: 0 | X96: 0 | Y96: 1346891 | Z96: 1346891 | AA96: 0 | AB96: 0 | AC96: 0 | AD96: 0 | AE96: 0 | AK96: 0
A97: 1 | AK97: 0
A98: =IF(MAX(E98:AF98)=0,IF(MIN(E98:AF98)=0,0,1),1) -> 1 | C98: Общо разходи | E98: =SUBTOTAL(9,E99:E139) -> 5729032 | F98: 4382141 | G98: 1662664 | H98: 60066 | I98: 2659411 | J98: 0 | K98: 0 | L98: 0 | M98: 0 | N98: 0 | O98: 0 | P98: 0 | Q98: 0 | R98: 0 | S98: 0 | T98: 0 | U98: 0 | V98: 0 | W98: 0 | X98: 0 | Y98: 1346891 | Z98: 1346891 | AA98: 0 | AB98: 0 | AC98: 0 | AD98: 0 | AE98: 0 | AK98: 0
A99: 1 | B99: 1. | C99: Текущи разходи | E99: =SUBTOTAL(9,E100:E125) -> 5729032 | F99: 4382141 | G99: 1662664 | H99: 60066 | I99: 2659411 | J99: 0 | K99: 0 | L99: 0 | M99: 0 | N99: 0 | O99: 0 | P99: 0 | Q99: 0 | R99: 0 | S99: 0 | T99: 0 | U99: 0 | V99: 0 | W99: 0 | X99: 0 | Y99: 1346891 | Z99: 1346891 | AA99: 0 | AB99: 0 | AC99: 0 | AD99: 0 | AE99: 0 | AK99: 0
A100: 0 | C100: Персонал | E100: =SUBTOTAL(9,E101:E111) -> 0 | F100: 0 | G100: 0 | H100: 0 | I100: 0 | J100: 0 | K100: 0 | L100: 0 | M100: 0 | N100: 0 | O100: 0 | P100: 0 | Q100: 0 | R100: 0 | S100: 0 | T100: 0 | U100: 0 | V100: 0 | W100: 0 | X100: 0 | Y100: 0 | Z100: 0 | AA100: 0 | AB100: 0 | AC100: 0 | AD100: 0 | AE100: 0 | AK100: 0
A101: 0 | C101: Заплати и възнаграждения за персонала, нает по трудови и служебни правоотношения | D101: 01-00 | E101: =SUBTOTAL(9,E102:E103) -> 0 | F101: 0 | G101: 0 | H101: 0 | I101: 0 | J101: 0 | K101: 0 | L101: 0 | M101: 0 | N101: 0 | O101: 0 | P101: 0 | Q101: 0 | R101: 0 | S101: 0 | T101: 0 | U101: 0 | V101: 0 | W101: 0 | X101: 0 | Y101: 0 | Z101: 0 | AA101: 0 | AB101: 0 | AC101: 0 | AD101: 0 | AE101: 0 | AK101: 0
A102: 0 | C102: Заплати и възнаграждения на персонала нает по трудови правоотношения | D102: 01-01 | E102: =SUMIF($C$251:$C$1230,$C102,E$251:E$1230) -> 0 | F102: 0 | G102: 0 | H102: 0 | I102: 0 | J102: 0 | K102: 0 | L102: 0 | M102: 0 | N102: 0 | O102: =SUMIF($C$251:$C$1230,$C102,O$251:O$1230) -> 0 | P102: 0 | Q102: 0 | R102: 0 | S102: 0 | T102: 0 | U102: 0 | V102: 0 | W102: 0 | X102: 0 | Y102: =SUMIF($C$251:$C$1230,$C102,Y$251:Y$1230) -> 0 | Z102: 0 | AA102: 0 | AB102: 0 | AC102: 0 | AD102: 0 | AE102: 0 | AK102: 0
A103: 0 | C103: Заплати и възнаграждения на персонала нает по служебни правоотношения | D103: 01-02 | E103: 0 | F103: 0 | G103: 0 | H103: 0 | I103: 0 | J103: 0 | K103: 0 | L103: 0 | M103: 0 | N103: 0 | O103: 0 | P103: 0 | Q103: 0 | R103: 0 | S103: 0 | T103: 0 | U103: 0 | V103: 0 | W103: 0 | X103: 0 | Y103: 0 | Z103: 0 | AA103: 0 | AB103: 0 | AC103: 0 | AD103: 0 | AE103: 0 | AK103: 0
A104: 0 | C104: Други възнаграждения и плащания за персонала | D104: 02-00 | E104: 0 | F104: 0 | G104: 0 | H104: 0 | I104: 0 | J104: 0 | K104: 0 | L104: 0 | M104: 0 | N104: 0 | O104: 0 | P104: 0 | Q104: 0 | R104: 0 | S104: 0 | T104: 0 | U104: 0 | V104: 0 | W104: 0 | X104: 0 | Y104: 0 | Z104: 0 | AA104: 0 | AB104: 0 | AC104: 0 | AD104: 0 | AE104: 0 | AK104: 0
A105: 0 | C105: Задължителни осигурителни вноски от работодатели | D105: 05-00 | E105: =SUBTOTAL(9,E106:E110) -> 0 | F105: 0 | G105: 0 | H105: 0 | I105: 0 | J105: 0 | K105: 0 | L105: 0 | M105: 0 | N105: 0 | O105: 0 | P105: 0 | Q105: 0 | R105: 0 | S105: 0 | T105: 0 | U105: 0 | V105: 0 | W105: 0 | X105: 0 | Y105: 0 | Z105: 0 | AA105: 0 | AB105: 0 | AC105: 0 | AD105: 0 | AE105: 0 | AK105: 0
A106: 0 | C106: Осигурителни вноски от работодатели за Държавното обществено осигуряване (ДОО) | D106: 05-51 | E106: =SUMIF($C$251:$C$1230,$C106,E$251:E$1230) -> 0 | F106: 0 | G106: 0 | H106: 0 | I106: 0 | J106: 0 | K106: 0 | L106: 0 | M106: 0 | N106: 0 | O106: =SUMIF($C$251:$C$1230,$C106,O$251:O$1230) -> 0 | P106: 0 | Q106: 0 | R106: 0 | S106: 0 | T106: 0 | U106: 0 | V106: 0 | W106: 0 | X106: 0 | Y106: =SUMIF($C$251:$C$1230,$C106,Y$251:Y$1230) -> 0 | Z106: 0 | AA106: 0 | AB106: 0 | AC106: 0 | AD106: 0 | AE106: 0 | AK106: 0
A107: 0 | C107: Осигурителни вноски от работодатели за Учителския пенсионен фонд (УПФ) | D107: 05-52 | E107: 0 | F107: 0 | G107: 0 | H107: 0 | I107: 0 | J107: 0 | K107: 0 | L107: 0 | M107: 0 | N107: 0 | O107: 0 | P107: 0 | Q107: 0 | R107: 0 | S107: 0 | T107: 0 | U107: 0 | V107: 0 | W107: 0 | X107: 0 | Y107: 0 | Z107: 0 | AA107: 0 | AB107: 0 | AC107: 0 | AD107: 0 | AE107: 0 | AK107: 0
A108: 0 | C108: Здравноосигурителни вноски от работодатели | D108: 05-60 | E108: 0 | F108: 0 | G108: 0 | H108: 0 | I108: 0 | J108: 0 | K108: 0 | L108: 0 | M108: 0 | N108: 0 | O108: 0 | P108: 0 | Q108: 0 | R108: 0 | S108: 0 | T108: 0 | U108: 0 | V108: 0 | W108: 0 | X108: 0 | Y108: 0 | Z108: 0 | AA108: 0 | AB108: 0 | AC108: 0 | AD108: 0 | AE108: 0 | AK108: 0
A109: 0 | C109: Вноски за допълнит. задължително осигуряване от работодатели | D109: 05-80 | E109: 0 | F109: 0 | G109: 0 | H109: 0 | I109: 0 | J109: 0 | K109: 0 | L109: 0 | M109: 0 | N109: 0 | O109: 0 | P109: 0 | Q109: 0 | R109: 0 | S109: 0 | T109: 0 | U109: 0 | V109: 0 | W109: 0 | X109: 0 | Y109: 0 | Z109: 0 | AA109: 0 | AB109: 0 | AC109: 0 | AD109: 0 | AE109: 0 | AK109: 0
A110: 0 | C110: Задължителни вноски за чуждестранни пенсионни фондове и схеми за сметка на осигурителя | D110: 05-90 | E110: 0 | F110: 0 | G110: 0 | H110: 0 | I110: 0 | J110: 0 | K110: 0 | L110: 0 | M110: 0 | N110: 0 | O110: 0 | P110: 0 | Q110: 0 | R110: 0 | S110: 0 | T110: 0 | U110: 0 | V110: 0 | W110: 0 | X110: 0 | Y110: 0 | Z110: 0 | AA110: 0 | AB110: 0 | AC110: 0 | AD110: 0 | AE110: 0 | AK110: 0
A111: 0 | C111: Вноски за доброволно осигуряване | D111: 08-00 | E111: 0 | F111: 0 | G111: 0 | H111: 0 | I111: 0 | J111: 0 | K111: 0 | L111: 0 | M111: 0 | N111: 0 | O111: 0 | P111: 0 | Q111: 0 | R111: 0 | S111: 0 | T111: 0 | U111: 0 | V111: 0 | W111: 0 | X111: 0 | Y111: 0 | Z111: 0 | AA111: 0 | AB111: 0 | AC111: 0 | AD111: 0 | AE111: 0 | AK111: 0
A112: 0 | C112: Издръжка | D112: 10-00 | E112: 0 | F112: 0 | G112: 0 | H112: 0 | I112: 0 | J112: 0 | K112: 0 | L112: 0 | M112: 0 | N112: 0 | O112: 0 | P112: 0 | Q112: 0 | R112: 0 | S112: 0 | T112: 0 | U112: 0 | V112: 0 | W112: 0 | X112: 0 | Y112: 0 | Z112: 0 | AA112: 0 | AB112: 0 | AC112: 0 | AD112: 0 | AE112: 0 | AK112: 0
A113: 0 | C113: Платени данъци, такси и административни санкции | D113: 19-00 | E113: 0 | F113: 0 | G113: 0 | H113: 0 | I113: 0 | J113: 0 | K113: 0 | L113: 0 | M113: 0 | N113: 0 | O113: 0 | P113: 0 | Q113: 0 | R113: 0 | S113: 0 | T113: 0 | U113: 0 | V113: 0 | W113: 0 | X113: 0 | Y113: 0 | Z113: 0 | AA113: 0 | AB113: 0 | AC113: 0 | AD113: 0 | AE113: 0 | AK113: 0
A114: 1 | C114: Лихви | E114: =SUBTOTAL(9,E115:E116) -> 5729032 | F114: 4382141 | G114: 1662664 | H114: 60066 | I114: 2659411 | J114: 0 | K114: 0 | L114: 0 | M114: 0 | N114: 0 | O114: 0 | P114: 0 | Q114: 0 | R114: 0 | S114: 0 | T114: 0 | U114: 0 | V114: 0 | W114: 0 | X114: 0 | Y114: 1346891 | Z114: 1346891 | AA114: 0 | AB114: 0 | AC114: 0 | AD114: 0 | AE114: 0 | AK114: 0
A115: 1 | C115: Лихви по външни заеми | E115: =SUMIF($C$251:$C$1230,$C115,E$251:E$1230) -> 5729032 | F115: 4382141 | G115: 1662664 | H115: 60066 | I115: 2659411 | J115: 0 | K115: 0 | L115: 0 | M115: 0 | N115: 0 | O115: =SUMIF($C$251:$C$1230,$C115,O$251:O$1230) -> 0 | P115: 0 | Q115: 0 | R115: 0 | S115: 0 | T115: 0 | U115: 0 | V115: 0 | W115: 0 | X115: 0 | Y115: =SUMIF($C$251:$C$1230,$C115,Y$251:Y$1230) -> 1346891 | Z115: 1346891 | AA115: 0 | AB115: 0 | AC115: 0 | AD115: 0 | AE115: 0 | AK115: 0
A116: 0 | C116: Лихви по вътрешни заеми | E116: 0 | F116: 0 | G116: 0 | H116: 0 | I116: 0 | J116: 0 | K116: 0 | L116: 0 | M116: 0 | N116: 0 | O116: 0 | P116: 0 | Q116: 0 | R116: 0 | S116: 0 | T116: 0 | U116: 0 | V116: 0 | W116: 0 | X116: 0 | Y116: 0 | Z116: 0 | AA116: 0 | AB116: 0 | AC116: 0 | AD116: 0 | AE116: 0 | AK116: 0
A117: 0 | C117: Здравноосигурителни плащания | D117: 39-00 | E117: 0 | F117: 0 | G117: 0 | H117: 0 | I117: 0 | J117: 0 | K117: 0 | L117: 0 | M117: 0 | N117: 0 | O117: 0 | P117: 0 | Q117: 0 | R117: 0 | S117: 0 | T117: 0 | U117: 0 | V117: 0 | W117: 0 | X117: 0 | Y117: 0 | Z117: 0 | AA117: 0 | AB117: 0 | AC117: 0 | AD117: 0 | AE117: 0 | AK117: 0
A118: 0 | C118: Стипендии | D118: 40-00 | E118: 0 | F118: 0 | G118: 0 | H118: 0 | I118: 0 | J118: 0 | K118: 0 | L118: 0 | M118: 0 | N118: 0 | O118: 0 | P118: 0 | Q118: 0 | R118: 0 | S118: 0 | T118: 0 | U118: 0 | V118: 0 | W118: 0 | X118: 0 | Y118: 0 | Z118: 0 | AA118: 0 | AB118: 0 | AC118: 0 | AD118: 0 | AE118: 0 | AK118: 0
A119: 0 | C119: Пенсии | D119: 41-00 | E119: 0 | F119: 0 | G119: 0 | H119: 0 | I119: 0 | J119: 0 | K119: 0 | L119: 0 | M119: 0 | N119: 0 | O119: 0 | P119: 0 | Q119: 0 | R119: 0 | S119: 0 | T119: 0 | U119: 0 | V119: 0 | W119: 0 | X119: 0 | Y119: 0 | Z119: 0 | AA119: 0 | AB119: 0 | AC119: 0 | AD119: 0 | AE119: 0 | AK119: 0
A120: 0 | C120: Текущи трансфери, обезщетения и помощи за домакинствата | D120: 42-00 | E120: 0 | F120: 0 | G120: 0 | H120: 0 | I120: 0 | J120: 0 | K120: 0 | L120: 0 | M120: 0 | N120: 0 | O120: 0 | P120: 0 | Q120: 0 | R120: 0 | S120: 0 | T120: 0 | U120: 0 | V120: 0 | W120: 0 | X120: 0 | Y120: 0 | Z120: 0 | AA120: 0 | AB120: 0 | AC120: 0 | AD120: 0 | AE120: 0 | AK120: 0
A121: 0 | C121: Субсидии и други текущи трансфери | E121: =SUBTOTAL(9,E122:E124) -> 0 | F121: 0 | G121: 0 | H121: 0 | I121: 0 | J121: 0 | K121: 0 | L121: 0 | M121: 0 | N121: 0 | O121: 0 | P121: 0 | Q121: 0 | R121: 0 | S121: 0 | T121: 0 | U121: 0 | V121: 0 | W121: 0 | X121: 0 | Y121: 0 | Z121: 0 | AA121: 0 | AB121: 0 | AC121: 0 | AD121: 0 | AE121: 0 | AK121: =IF(CELL("protect",AC121),0,1) -> 0
A122: 0 | C122: Субсидии и други текущи трансфери за нефинансови предприятия | D122: 43-00 | E122: =SUMIF($C$251:$C$1230,$C122,E$251:E$1230) -> 0 | F122: 0 | G122: 0 | H122: 0 | I122: 0 | J122: 0 | K122: 0 | L122: 0 | M122: 0 | N122: 0 | O122: =SUMIF($C$251:$C$1230,$C122,O$251:O$1230) -> 0 | P122: 0 | Q122: 0 | R122: 0 | S122: 0 | T122: 0 | U122: 0 | V122: 0 | W122: 0 | X122: 0 | Y122: =SUMIF($C$251:$C$1230,$C122,Y$251:Y$1230) -> 0 | Z122: 0 | AA122: 0 | AB122: 0 | AC122: 0 | AD122: 0 | AE122: 0 | AK122: 0
A123: 0 | C123: Субсидии и други текущи трансфери за осъществяване на болнична помощ | D123: 43-02 | E123: 0 | F123: 0 | G123: 0 | H123: 0 | I123: 0 | J123: 0 | K123: 0 | L123: 0 | M123: 0 | N123: 0 | O123: 0 | P123: 0 | Q123: 0 | R123: 0 | S123: 0 | T123: 0 | U123: 0 | V123: 0 | W123: 0 | X123: 0 | Y123: 0 | Z123: 0 | AA123: 0 | AB123: 0 | AC123: 0 | AD123: 0 | AE123: 0 | AK123: 0
A124: 0 | C124: Субсидии и други текущи трансфери за юридически лица с нестопанска цел | D124: 45-00 | E124: 0 | F124: 0 | G124: 0 | H124: 0 | I124: 0 | J124: 0 | K124: 0 | L124: 0 | M124: 0 | N124: 0 | O124: 0 | P124: 0 | Q124: 0 | R124: 0 | S124: 0 | T124: 0 | U124: 0 | V124: 0 | W124: 0 | X124: 0 | Y124: 0 | Z124: 0 | AA124: 0 | AB124: 0 | AC124: 0 | AD124: 0 | AE124: 0 | AK124: 0
A125: 0 | C125: Разходи за членски внос и участие в нетърговски организации и дейности | D125: 46-00 | E125: 0 | F125: 0 | G125: 0 | H125: 0 | I125: 0 | J125: 0 | K125: 0 | L125: 0 | M125: 0 | N125: 0 | O125: 0 | P125: 0 | Q125: 0 | R125: 0 | S125: 0 | T125: 0 | U125: 0 | V125: 0 | W125: 0 | X125: 0 | Y125: 0 | Z125: 0 | AA125: 0 | AB125: 0 | AC125: 0 | AD125: 0 | AE125: 0 | AK125: 0
A126: 0 | B126: 2. | C126: Предоставени текущи и капиталови трансфери за чужбина | D126: 49-00 | E126: =SUBTOTAL(9,E127:E128) -> 0 | F126: 0 | G126: 0 | H126: 0 | I126: 0 | J126: 0 | K126: 0 | L126: 0 | M126: 0 | N126: 0 | O126: 0 | P126: 0 | Q126: 0 | R126: 0 | S126: 0 | T126: 0 | U126: 0 | V126: 0 | W126: 0 | X126: 0 | Y126: 0 | Z126: 0 | AA126: 0 | AB126: 0 | AC126: 0 | AD126: 0 | AE126: 0 | AK126: 0
A127: 0 | C127: Текущи трансфери за чужбина | D127: 49-01 | E127: =SUMIF($C$251:$C$1230,$C127,E$251:E$1230) -> 0 | F127: 0 | G127: 0 | H127: 0 | I127: 0 | J127: 0 | K127: 0 | L127: 0 | M127: 0 | N127: 0 | O127: =SUMIF($C$251:$C$1230,$C127,O$251:O$1230) -> 0 | P127: 0 | Q127: 0 | R127: 0 | S127: 0 | T127: 0 | U127: 0 | V127: 0 | W127: 0 | X127: 0 | Y127: =SUMIF($C$251:$C$1230,$C127,Y$251:Y$1230) -> 0 | Z127: 0 | AA127: 0 | AB127: 0 | AC127: 0 | AD127: 0 | AE127: 0 | AK127: 0
A128: 0 | C128: Капиталови трансфери за чужбина | D128: 49-02 | E128: 0 | F128: 0 | G128: 0 | H128: 0 | I128: 0 | J128: 0 | K128: 0 | L128: 0 | M128: 0 | N128: 0 | O128: 0 | P128: 0 | Q128: 0 | R128: 0 | S128: 0 | T128: 0 | U128: 0 | V128: 0 | W128: 0 | X128: 0 | Y128: 0 | Z128: 0 | AA128: 0 | AB128: 0 | AC128: 0 | AD128: 0 | AE128: 0 | AK128: 0
A129: 0 | B129: 3. | C129: Капиталови разходи | E129: =SUBTOTAL(9,E130:E134) -> 0 | F129: 0 | G129: 0 | H129: 0 | I129: 0 | J129: 0 | K129: 0 | L129: 0 | M129: 0 | N129: 0 | O129: 0 | P129: 0 | Q129: 0 | R129: 0 | S129: 0 | T129: 0 | U129: 0 | V129: 0 | W129: 0 | X129: 0 | Y129: 0 | Z129: 0 | AA129: 0 | AB129: 0 | AC129: 0 | AD129: 0 | AE129: 0 | AK129: 0
A130: 0 | C130: Основен ремонт на дълготрайни материални активи | D130: 51-00 | E130: =SUMIF($C$251:$C$1230,$C130,E$251:E$1230) -> 0 | F130: 0 | G130: 0 | H130: 0 | I130: 0 | J130: 0 | K130: 0 | L130: 0 | M130: 0 | N130: 0 | O130: =SUMIF($C$251:$C$1230,$C130,O$251:O$1230) -> 0 | P130: 0 | Q130: 0 | R130: 0 | S130: 0 | T130: 0 | U130: 0 | V130: 0 | W130: 0 | X130: 0 | Y130: =SUMIF($C$251:$C$1230,$C130,Y$251:Y$1230) -> 0 | Z130: 0 | AA130: 0 | AB130: 0 | AC130: 0 | AD130: 0 | AE130: 0 | AK130: 0
A131: 0 | C131: Придобиване на дълготрайни материални активи | D131: 52-00 | E131: 0 | F131: 0 | G131: 0 | H131: 0 | I131: 0 | J131: 0 | K131: 0 | L131: 0 | M131: 0 | N131: 0 | O131: 0 | P131: 0 | Q131: 0 | R131: 0 | S131: 0 | T131: 0 | U131: 0 | V131: 0 | W131: 0 | X131: 0 | Y131: 0 | Z131: 0 | AA131: 0 | AB131: 0 | AC131: 0 | AD131: 0 | AE131: 0 | AK131: 0
A132: 0 | C132: Придобиване на нематериални дълготрайни активи | D132: 53-00 | E132: 0 | F132: 0 | G132: 0 | H132: 0 | I132: 0 | J132: 0 | K132: 0 | L132: 0 | M132: 0 | N132: 0 | O132: 0 | P132: 0 | Q132: 0 | R132: 0 | S132: 0 | T132: 0 | U132: 0 | V132: 0 | W132: 0 | X132: 0 | Y132: 0 | Z132: 0 | AA132: 0 | AB132: 0 | AC132: 0 | AD132: 0 | AE132: 0 | AK132: 0
A133: 0 | C133: Придобиване на земя | D133: 54-00 | E133: 0 | F133: 0 | G133: 0 | H133: 0 | I133: 0 | J133: 0 | K133: 0 | L133: 0 | M133: 0 | N133: 0 | O133: 0 | P133: 0 | Q133: 0 | R133: 0 | S133: 0 | T133: 0 | U133: 0 | V133: 0 | W133: 0 | X133: 0 | Y133: 0 | Z133: 0 | AA133: 0 | AB133: 0 | AC133: 0 | AD133: 0 | AE133: 0 | AK133: 0
A134: 0 | C134: Капиталови трансфери | D134: 55-00 | E134: 0 | F134: 0 | G134: 0 | H134: 0 | I134: 0 | J134: 0 | K134: 0 | L134: 0 | M134: 0 | N134: 0 | O134: 0 | P134: 0 | Q134: 0 | R134: 0 | S134: 0 | T134: 0 | U134: 0 | V134: 0 | W134: 0 | X134: 0 | Y134: 0 | Z134: 0 | AA134: 0 | AB134: 0 | AC134: 0 | AD134: 0 | AE134: 0 | AK134: 0
A135: 0 | B135: 4. | C135: Прираст на държавния резерв и изкупуване на земеделска продукция | E135: =SUBTOTAL(9,E136:E138) -> 0 | F135: 0 | G135: 0 | H135: 0 | I135: 0 | J135: 0 | K135: 0 | L135: 0 | M135: 0 | N135: 0 | O135: 0 | P135: 0 | Q135: 0 | R135: 0 | S135: 0 | T135: 0 | U135: 0 | V135: 0 | W135: 0 | X135: 0 | Y135: 0 | Z135: 0 | AA135: 0 | AB135: 0 | AC135: 0 | AD135: 0 | AE135: 0 | AK135: 0
A136: 0 | C136: Плащания за попълване на държавния резерв | D136: 57-01 | E136: =SUMIF($C$251:$C$1230,$C136,E$251:E$1230) -> 0 | F136: 0 | G136: 0 | H136: 0 | I136: 0 | J136: 0 | K136: 0 | L136: 0 | M136: 0 | N136: 0 | O136: =SUMIF($C$251:$C$1230,$C136,O$251:O$1230) -> 0 | P136: 0 | Q136: 0 | R136: 0 | S136: 0 | T136: 0 | U136: 0 | V136: 0 | W136: 0 | X136: 0 | Y136: =SUMIF($C$251:$C$1230,$C136,Y$251:Y$1230) -> 0 | Z136: 0 | AA136: 0 | AB136: 0 | AC136: 0 | AD136: 0 | AE136: 0 | AK136: 0
A137: 0 | C137: Постъпления от продажба на държавния резерв (-) | D137: 40-71 | E137: 0 | F137: 0 | G137: 0 | H137: 0 | I137: 0 | J137: 0 | K137: 0 | L137: 0 | M137: 0 | N137: 0 | O137: 0 | P137: 0 | Q137: 0 | R137: 0 | S137: 0 | T137: 0 | U137: 0 | V137: 0 | W137: 0 | X137: 0 | Y137: 0 | Z137: 0 | AA137: 0 | AB137: 0 | AC137: 0 | AD137: 0 | AE137: 0 | AK137: 0
A138: 0 | C138: Плащания за изкупуване на земеделска продукция | D138: 57-02 | E138: 0 | F138: 0 | G138: 0 | H138: 0 | I138: 0 | J138: 0 | K138: 0 | L138: 0 | M138: 0 | N138: 0 | O138: 0 | P138: 0 | Q138: 0 | R138: 0 | S138: 0 | T138: 0 | U138: 0 | V138: 0 | W138: 0 | X138: 0 | Y138: 0 | Z138: 0 | AA138: 0 | AB138: 0 | AC138: 0 | AD138: 0 | AE138: 0 | AK138: 0
A139: 0 | B139: 5. | C139: Резерв за непредвидени и неотложни разходи | D139: 00-98 | E139: 0 | F139: 0 | G139: 0 | H139: 0 | I139: 0 | J139: 0 | K139: 0 | L139: 0 | M139: 0 | N139: 0 | O139: 0 | P139: 0 | Q139: 0 | R139: 0 | S139: 0 | T139: 0 | U139: 0 | V139: 0 | W139: 0 | X139: 0 | Y139: 0 | Z139: 0 | AA139: 0 | AB139: 0 | AC139: 0 | AD139: 0 | AE139: 0 | AK139: 0
A140: 1 | AK140: 0
A141: 1 | C141: НАТУРАЛНИ ПОКАЗАТЕЛИ | AK141: 0
A142: =IF(MAX(E142:AF142)=0,IF(MIN(E142:AF142)=0,0,1),1) -> 0 | C142: Щатни бройки - общо | E142: =E144+E151+E153 -> 0 | F142: 0 | G142: 0 | H142: 0 | I142: 0 | J142: 0 | K142: 0 | L142: 0 | M142: 0 | N142: 0 | O142: 0 | P142: 0 | Q142: 0 | R142: 0 | S142: 0 | T142: 0 | U142: 0 | V142: 0 | W142: 0 | X142: 0 | Y142: 0 | Z142: 0 | AA142: 0 | AB142: 0 | AC142: 0 | AD142: 0 | AE142: 0 | AK142: 0
A143: 0 | C143: Средногодишни щатни бройки - общо | E143: =E147+E152+E154 -> 0 | F143: 0 | G143: 0 | H143: 0 | I143: 0 | J143: 0 | K143: 0 | L143: 0 | M143: 0 | N143: 0 | O143: 0 | P143: 0 | Q143: 0 | R143: 0 | S143: 0 | T143: 0 | U143: 0 | V143: 0 | W143: 0 | X143: 0 | Y143: 0 | Z143: 0 | AA143: 0 | AB143: 0 | AC143: 0 | AD143: 0 | AE143: 0 | AK143: 0
A144: 0 | C144: Щатни бройки | E144: =SUM(E145:E146) -> 0 | F144: 0 | G144: 0 | H144: 0 | I144: 0 | J144: 0 | K144: 0 | L144: 0 | M144: 0 | N144: 0 | O144: 0 | P144: 0 | Q144: 0 | R144: 0 | S144: 0 | T144: 0 | U144: 0 | V144: 0 | W144: 0 | X144: 0 | Y144: 0 | Z144: 0 | AA144: 0 | AB144: 0 | AC144: 0 | AD144: 0 | AE144: 0 | AK144: 0
A145: 0 | C145: по трудови правоотношения | E145: =SUMIF($C$251:$C$1230,$C145,E$251:E$1230) -> 0 | F145: 0 | G145: 0 | H145: 0 | I145: 0 | J145: 0 | K145: 0 | L145: 0 | M145: 0 | N145: 0 | O145: =SUMIF($C$251:$C$1230,$C145,O$251:O$1230) -> 0 | P145: 0 | Q145: 0 | R145: 0 | S145: 0 | T145: 0 | U145: 0 | V145: 0 | W145: 0 | X145: 0 | Y145: =SUMIF($C$251:$C$1230,$C145,Y$251:Y$1230) -> 0 | Z145: 0 | AA145: 0 | AB145: 0 | AC145: 0 | AD145: 0 | AE145: 0 | AK145: 0
A146: 0 | C146: по служебни правоотношения | E146: 0 | F146: 0 | G146: 0 | H146: 0 | I146: 0 | J146: 0 | K146: 0 | L146: 0 | M146: 0 | N146: 0 | O146: 0 | P146: 0 | Q146: 0 | R146: 0 | S146: 0 | T146: 0 | U146: 0 | V146: 0 | W146: 0 | X146: 0 | Y146: 0 | Z146: 0 | AA146: 0 | AB146: 0 | AC146: 0 | AD146: 0 | AE146: 0 | AK146: 0
A147: 0 | C147: Средногодишни щатни бройки | E147: =SUM(E148:E149) -> 0 | F147: 0 | G147: 0 | H147: 0 | I147: 0 | J147: 0 | K147: 0 | L147: 0 | M147: 0 | N147: 0 | O147: 0 | P147: 0 | Q147: 0 | R147: 0 | S147: 0 | T147: 0 | U147: 0 | V147: 0 | W147: 0 | X147: 0 | Y147: 0 | Z147: 0 | AA147: 0 | AB147: 0 | AC147: 0 | AD147: 0 | AE147: 0 | AK147: 0
A148: 0 | C148: по трудови правоотношения | E148: =SUMIF($C$251:$C$1230,$C148,E$251:E$1230) -> 0 | F148: 0 | G148: 0 | H148: 0 | I148: 0 | J148: 0 | K148: 0 | L148: 0 | M148: 0 | N148: 0 | O148: =SUMIF($C$251:$C$1230,$C148,O$251:O$1230) -> 0 | P148: 0 | Q148: 0 | R148: 0 | S148: 0 | T148: 0 | U148: 0 | V148: 0 | W148: 0 | X148: 0 | Y148: =SUMIF($C$251:$C$1230,$C148,Y$251:Y$1230) -> 0 | Z148: 0 | AA148: 0 | AB148: 0 | AC148: 0 | AD148: 0 | AE148: 0 | AK148: 0
A149: 0 | C149: по служебни правоотношения | E149: 0 | F149: 0 | G149: 0 | H149: 0 | I149: 0 | J149: 0 | K149: 0 | L149: 0 | M149: 0 | N149: 0 | O149: 0 | P149: 0 | Q149: 0 | R149: 0 | S149: 0 | T149: 0 | U149: 0 | V149: 0 | W149: 0 | X149: 0 | Y149: 0 | Z149: 0 | AA149: 0 | AB149: 0 | AC149: 0 | AD149: 0 | AE149: 0 | AK149: 0
A150: 0 | C150: Средна годишна брутна заплата | E150: =IF(E143=0,0,E101/E143) -> 0 | F150: 0 | G150: 0 | H150: 0 | I150: 0 | J150: 0 | K150: 0 | L150: 0 | M150: 0 | N150: 0 | O150: 0 | P150: 0 | Q150: 0 | R150: 0 | S150: 0 | T150: 0 | U150: 0 | V150: 0 | W150: 0 | X150: 0 | Y150: 0 | Z150: 0 | AA150: 0 | AB150: 0 | AC150: 0 | AD150: 0 | AE150: 0 | AK150: 0
A151: 0 | C151: Щатни бройки за дейности в средното образование, финансирани по единни разходни стандарти | E151: =SUMIF($C$251:$C$1230,$C151,E$251:E$1230) -> 0 | F151: 0 | G151: 0 | H151: 0 | I151: 0 | J151: 0 | K151: 0 | L151: 0 | M151: 0 | N151: 0 | O151: =SUMIF($C$251:$C$1230,$C151,O$251:O$1230) -> 0 | P151: 0 | Q151: 0 | R151: 0 | S151: 0 | T151: 0 | U151: 0 | V151: 0 | W151: 0 | X151: 0 | Y151: =SUMIF($C$251:$C$1230,$C151,Y$251:Y$1230) -> 0 | Z151: 0 | AA151: 0 | AB151: 0 | AC151: 0 | AD151: 0 | AE151: 0 | AK151: 0
A152: 0 | C152: Средногодишни щатни бройки за дейности в средното образование, финансирани по единни разходни стандарти | E152: 0 | F152: 0 | G152: 0 | H152: 0 | I152: 0 | J152: 0 | K152: 0 | L152: 0 | M152: 0 | N152: 0 | O152: 0 | P152: 0 | Q152: 0 | R152: 0 | S152: 0 | T152: 0 | U152: 0 | V152: 0 | W152: 0 | X152: 0 | Y152: 0 | Z152: 0 | AA152: 0 | AB152: 0 | AC152: 0 | AD152: 0 | AE152: 0 | AK152: 0
A153: 0 | C153: Щатни бройки за дейности в областта на сценичните изкуства, на държавните културни институти в областта на културното наследство и библиотечното дело, финансирани по единни разходни стандарти | E153: 0 | F153: 0 | G153: 0 | H153: 0 | I153: 0 | J153: 0 | K153: 0 | L153: 0 | M153: 0 | N153: 0 | O153: 0 | P153: 0 | Q153: 0 | R153: 0 | S153: 0 | T153: 0 | U153: 0 | V153: 0 | W153: 0 | X153: 0 | Y153: 0 | Z153: 0 | AA153: 0 | AB153: 0 | AC153: 0 | AD153: 0 | AE153: 0 | AK153: 0
A154: 0 | C154: Средногодишни щатни бройки за дейности в областта на сценичните изкуства, на държавните културни институти в областта на културното наследство и библиотечното дело, финансирани по единни разходни стандарти | E154: 0 | F154: 0 | G154: 0 | H154: 0 | I154: 0 | J154: 0 | K154: 0 | L154: 0 | M154: 0 | N154: 0 | O154: 0 | P154: 0 | Q154: 0 | R154: 0 | S154: 0 | T154: 0 | U154: 0 | V154: 0 | W154: 0 | X154: 0 | Y154: 0 | Z154: 0 | AA154: 0 | AB154: 0 | AC154: 0 | AD154: 0 | AE154: 0 | AK154: 0
A155: 1 | AK155: 0
A156: 1 | C156: III. БЮДЖЕТНИ ВЗАИМООТНОШЕНИЯ | D156: 03 | E156: =SUBTOTAL(9,E158:E193) -> 23261694 | F156: 23261694 | G156: 7284038 | H156: 2015896 | I156: 13961760 | J156: 0 | K156: 0 | L156: 0 | M156: 0 | N156: 0 | O156: 0 | P156: 0 | Q156: 0 | R156: 0 | S156: 0 | T156: 0 | U156: 0 | V156: 0 | W156: 0 | X156: 0 | Y156: 0 | Z156: 0 | AA156: 0 | AB156: 0 | AC156: 0 | AD156: 0 | AE156: 0 | AK156: 0
A157: 1 | AK157: 0
A158: 1 | C158: III. А. ТРАНСФЕРИ | E158: =SUBTOTAL(9,E160:E191) -> 23261694 | F158: 23261694 | G158: 7284038 | H158: 2015896 | I158: 13961760 | J158: 0 | K158: 0 | L158: 0 | M158: 0 | N158: 0 | O158: 0 | P158: 0 | Q158: 0 | R158: 0 | S158: 0 | T158: 0 | U158: 0 | V158: 0 | W158: 0 | X158: 0 | Y158: 0 | Z158: 0 | AA158: 0 | AB158: 0 | AC158: 0 | AD158: 0 | AE158: 0 | AK158: 0
A159: 1 | AK159: 0
A160: =IF(MAX(E160:AF160)=0,IF(MIN(E160:AF160)=0,0,1),1) -> 1 | C160: Трансфери между бюджета на бюджетната организация и ЦБ (нето) | D160: 30-31 | E160: =SUBTOTAL(9,E161:E163) -> 23261694 | F160: 23261694 | G160: =SUBTOTAL(9,G161:G163) -> 7284038 | H160: =SUBTOTAL(9,H161:H163) -> 2015896 | I160: =SUBTOTAL(9,I161:I163) -> 13961760 | J160: 0 | K160: 0 | L160: 0 | M160: 0 | N160: 0 | O160: 0 | P160: 0 | Q160: 0 | R160: 0 | S160: 0 | T160: 0 | U160: 0 | V160: 0 | W160: 0 | X160: 0 | Y160: 0 | Z160: 0 | AA160: 0 | AB160: 0 | AC160: 0 | AD160: 0 | AE160: 0 | AK160: 0
A161: 1 | C161: - трансфери от/за ЦБ (+/-) | E161: =F161+Y161 -> 23261694 | F161: =SUM(G161:X161) -> 23261694 | G161: =1056637+435172+4321097+1056637+414495 -> 7284038 | H161: =1955830+60066 -> 2015896 | I161: 13961760 | Y161: =SUM(Z161:AE161) -> 0 | AK161: 1
A162: 0 | C162: - възстановени трансфери за ЦБ (-/+) | E162: =F162+Y162 -> 0 | F162: =SUM(G162:X162) -> 0 | Y162: =SUM(Z162:AE162) -> 0 | AK162: 1
A163: 0 | C163: - трансфери за здравно осигуряване (+/-) | E163: =F163+Y163 -> 0 | F163: =SUM(G163:X163) -> 0 | Y163: =SUM(Z163:AE163) -> 0 | AK163: 1
A164: 0 | C164: Предоставени субсидии от държавния бюджет за БАН и държавните висши училища (нето) | D164: 32-00 | E164: =SUBTOTAL(9,E165:E168) -> 0 | F164: 0 | G164: 0 | H164: 0 | I164: 0 | J164: 0 | K164: 0 | L164: 0 | M164: 0 | N164: 0 | O164: 0 | P164: 0 | Q164: 0 | R164: 0 | S164: 0 | T164: 0 | U164: 0 | V164: 0 | W164: 0 | X164: 0 | Y164: 0 | Z164: 0 | AA164: 0 | AB164: 0 | AC164: 0 | AD164: 0 | AE164: 0 | AK164: 0
A165: 0 | C165: - предоставени трансфери от ДБ за държавните висши училища | D165: 32-10 | E165: =F165+Y165 -> 0 | F165: =SUM(G165:X165) -> 0 | Y165: =SUM(Z165:AE165) -> 0 | AK165: 1
A166: 0 | C166: - предоставени трансфери от ДБ за БАН | D166: 32-20 | E166: =F166+Y166 -> 0 | F166: =SUM(G166:X166) -> 0 | Y166: =SUM(Z166:AE166) -> 0 | AK166: 1
A167: 0 | C167: - получени от държавните висши училища трансфери от ДБ(+) | D167: 32-30 | E167: =F167+Y167 -> 0 | F167: =SUM(G167:X167) -> 0 | Y167: =SUM(Z167:AE167) -> 0 | AK167: 1
A168: 0 | C168: - получени от БАН трансфери от ДБ (+) | D168: 32-40 | E168: =F168+Y168 -> 0 | F168: =SUM(G168:X168) -> 0 | Y168: =SUM(Z168:AE168) -> 0 | AK168: 1
A169: 0 | C169: Трансфери между ЦБ и сметки за средствата от Европейския съюз (нето) | D169: 60-00 | E169: =SUBTOTAL(9,E170:E171) -> 0 | F169: 0 | G169: 0 | H169: 0 | I169: 0 | J169: 0 | K169: 0 | L169: 0 | M169: 0 | N169: 0 | O169: 0 | P169: 0 | Q169: 0 | R169: 0 | S169: 0 | T169: 0 | U169: 0 | V169: 0 | W169: 0 | X169: 0 | Y169: 0 | Z169: 0 | AA169: 0 | AB169: 0 | AC169: 0 | AD169: 0 | AE169: 0 | AK169: 0
A170: 0 | C170: - получени трансфери (+) | D170: 60-01 | E170: =F170+Y170 -> 0 | F170: =SUM(G170:X170) -> 0 | Y170: =SUM(Z170:AE170) -> 0 | AK170: 1
A171: 0 | C171: - предоставени трансфери (-) | D171: 60-02 | E171: =F171+Y171 -> 0 | F171: =SUM(G171:X171) -> 0 | Y171: =SUM(Z171:AE171) -> 0 | AK171: 1
A172: 0 | C172: Трансфери между бюджети (нето) | D172: 61-00 | E172: =SUBTOTAL(9,E173:E176) -> 0 | F172: 0 | G172: 0 | H172: 0 | I172: 0 | J172: 0 | K172: 0 | L172: 0 | M172: 0 | N172: 0 | O172: 0 | P172: 0 | Q172: 0 | R172: 0 | S172: 0 | T172: 0 | U172: 0 | V172: 0 | W172: 0 | X172: 0 | Y172: 0 | Z172: 0 | AA172: 0 | AB172: 0 | AC172: 0 | AD172: 0 | AE172: 0 | AK172: 0
A173: 0 | C173: - получени трансфери (+) | D173: 61-01 | E173: =F173+Y173 -> 0 | F173: =SUM(G173:X173) -> 0 | Y173: =SUM(Z173:AE173) -> 0 | AK173: 1
A174: 0 | C174: - предоставени трансфери (-) | D174: 61-02 | E174: =F174+Y174 -> 0 | F174: =SUM(G174:X174) -> 0 | Y174: =SUM(Z174:AE174) -> 0 | AK174: 1
A175: 0 | C175: - трансфери от МТСП по програми за осигуряване на заетост (+/-) | D175: 61-05 | E175: =F175+Y175 -> 0 | F175: =SUM(G175:X175) -> 0 | Y175: =SUM(Z175:AE175) -> 0 | AK175: 1
A176: 0 | C176: - вътрешни трансфери в системата на първостеп.разпоредител (+/-) | D176: 61-09 | E176: =F176+Y176 -> 0 | F176: =SUM(G176:X176) -> 0 | Y176: =SUM(Z176:AE176) -> 0 | AK176: 1
A177: 0 | C177: Трансфери между бюджети и сметки за средствата от Европейския съюз (нето) | D177: 62-00 | E177: =SUBTOTAL(9,E178:E179) -> 0 | F177: 0 | G177: 0 | H177: 0 | I177: 0 | J177: 0 | K177: 0 | L177: 0 | M177: 0 | N177: 0 | O177: 0 | P177: 0 | Q177: 0 | R177: 0 | S177: 0 | T177: 0 | U177: 0 | V177: 0 | W177: 0 | X177: 0 | Y177: 0 | Z177: 0 | AA177: 0 | AB177: 0 | AC177: 0 | AD177: 0 | AE177: 0 | AK177: 0
A178: 0 | C178: - получени трансфери (+) | D178: 62-01 | E178: =F178+Y178 -> 0 | F178: =SUM(G178:X178) -> 0 | Y178: =SUM(Z178:AE178) -> 0 | AK178: 1
A179: 0 | C179: - предоставени трансфери (-) | D179: 62-02 | E179: =F179+Y179 -> 0 | F179: =SUM(G179:X179) -> 0 | Y179: =SUM(Z179:AE179) -> 0 | AK179: 1
A180: 0 | C180: Трансфери между сметки за средствата от Европейския съюз (нето) | D180: 63-00 | E180: =SUBTOTAL(9,E181:E182) -> 0 | F180: 0 | G180: 0 | H180: 0 | I180: 0 | J180: 0 | K180: 0 | L180: 0 | M180: 0 | N180: 0 | O180: 0 | P180: 0 | Q180: 0 | R180: 0 | S180: 0 | T180: 0 | U180: 0 | V180: 0 | W180: 0 | X180: 0 | Y180: 0 | Z180: 0 | AA180: 0 | AB180: 0 | AC180: 0 | AD180: 0 | AE180: 0 | AK180: 0
A181: 0 | C181: - получени трансфери (+) | D181: 63-01 | E181: =F181+Y181 -> 0 | F181: =SUM(G181:X181) -> 0 | Y181: =SUM(Z181:AE181) -> 0 | AK181: 1
A182: 0 | C182: - предоставени трансфери (-) | D182: 63-02 | E182: =F182+Y182 -> 0 | F182: =SUM(G182:X182) -> 0 | Y182: =SUM(Z182:AE182) -> 0 | AK182: 1
A183: 0 | C183: Трансфери от/за държавни предприятия и други лица, включени в консолидираната фискална програма | D183: 64-00 | E183: =SUBTOTAL(9,E184:E185) -> 0 | F183: 0 | G183: 0 | H183: 0 | I183: 0 | J183: 0 | K183: 0 | L183: 0 | M183: 0 | N183: 0 | O183: 0 | P183: 0 | Q183: 0 | R183: 0 | S183: 0 | T183: 0 | U183: 0 | V183: 0 | W183: 0 | X183: 0 | Y183: 0 | Z183: 0 | AA183: 0 | AB183: 0 | AC183: 0 | AD183: 0 | AE183: 0 | AK183: 0
A184: 0 | C184: - получени трансфери (+) | D184: 64-01 | E184: =F184+Y184 -> 0 | F184: =SUM(G184:X184) -> 0 | Y184: =SUM(Z184:AE184) -> 0 | AK184: 1
A185: 0 | C185: - предоставени трансфери (-) | D185: 64-02 | E185: =F185+Y185 -> 0 | F185: =SUM(G185:X185) -> 0 | Y185: =SUM(Z185:AE185) -> 0 | AK185: =IF(CELL("protect",AC185),0,1) -> 1
A186: 0 | C186: Трансфери на отчислени постъпления | D186: 65-00 | E186: =F186+Y186 -> 0 | F186: =SUM(G186:X186) -> 0 | Y186: =SUM(Z186:AE186) -> 0 | AK186: 1
A187: 0 | C187: Разчети за извършени плащания в СЕБРА (+/-) | D187: 66-00 | E187: =F187+Y187 -> 0 | F187: =SUM(G187:X187) -> 0 | Y187: =SUM(Z187:AE187) -> 0 | AK187: 1
A188: 0 | C188: Трансфери от/за сметки за чужди средства | D188: 67-00 | E188: =SUBTOTAL(9,E189:E190) -> 0 | F188: 0 | G188: 0 | H188: 0 | I188: 0 | J188: 0 | K188: 0 | L188: 0 | M188: 0 | N188: 0 | O188: 0 | P188: 0 | Q188: 0 | R188: 0 | S188: 0 | T188: 0 | U188: 0 | V188: 0 | W188: 0 | X188: 0 | Y188: 0 | Z188: 0 | AA188: 0 | AB188: 0 | AC188: 0 | AD188: 0 | AE188: 0 | AK188: 0
A189: 0 | C189: - получени трансфери (+) | D189: 67-01 | E189: =F189+Y189 -> 0 | F189: =SUM(G189:X189) -> 0 | Y189: =SUM(Z189:AE189) -> 0 | AK189: 1
A190: 0 | C190: - предоставени трансфери (-) | D190: 67-02 | E190: =F190+Y190 -> 0 | F190: =SUM(G190:X190) -> 0 | Y190: =SUM(Z190:AE190) -> 0 | AK190: 1
A191: 0 | C191: Трансфери за поети осигурителни вноски и данъци | D191: 69-00 | E191: =F191+Y191 -> 0 | F191: =SUM(G191:X191) -> 0 | Y191: =SUM(Z191:AE191) -> 0 | AK191: 1
A192: 1 | AK192: 0
A193: 1 | C193: III. Б. ВРЕМЕННИ БЕЗЛИХВЕНИ ЗАЕМИ | E193: =F193+Y193 -> 0 | F193: =SUM(G193:X193) -> 0 | Y193: =SUM(Z193:AE193) -> 0 | AK193: 1
A194: 1 | AK194: 0
A195: 1 | C195: IV. БЮДЖЕТНО САЛДО (+/-) (I. - ІІ. + ІІІ.) | D195: 04 | E195: =E14-E96+E156 -> 18842047 | F195: 18879553 | G195: 5621374 | H195: 1955830 | I195: 11302349 | J195: 0 | K195: 0 | L195: 0 | M195: 0 | N195: 0 | O195: 0 | P195: 0 | Q195: 0 | R195: 0 | S195: 0 | T195: 0 | U195: 0 | V195: 0 | W195: 0 | X195: 0 | Y195: -37506 | Z195: -37506 | AA195: 0 | AB195: 0 | AC195: 0 | AD195: 0 | AE195: 0 | AK195: 0
A196: 1 | E196: =ROUND(E195,0)+ROUND(E197,0) -> 0 | F196: 0 | G196: 0 | H196: 0 | I196: 0 | J196: 0 | K196: 0 | L196: 0 | M196: 0 | N196: 0 | O196: 0 | P196: 0 | Q196: 0 | R196: 0 | S196: 0 | T196: 0 | U196: 0 | V196: 0 | W196: 0 | X196: 0 | Y196: 0 | Z196: 0 | AA196: 0 | AB196: 0 | AC196: 0 | AD196: 0 | AE196: 0 | AK196: 0
A197: 1 | C197: V. ФИНАНСИРАНЕ | D197: 05 | E197: =SUBTOTAL(9,E199:E249) -> -18842047 | F197: -18879553 | G197: -5621374 | H197: -1955830 | I197: -11302349 | J197: 0 | K197: 0 | L197: 0 | M197: 0 | N197: 0 | O197: 0 | P197: 0 | Q197: 0 | R197: 0 | S197: 0 | T197: 0 | U197: 0 | V197: 0 | W197: 0 | X197: 0 | Y197: 37506 | Z197: 37506 | AA197: 0 | AB197: 0 | AC197: 0 | AD197: 0 | AE197: 0 | AK197: 0
A198: 1 | AK198: 0
A199: =IF(MAX(E199:AF199)=0,IF(MIN(E199:AF199)=0,0,1),1) -> 1 | C199: Заеми от чужбина - нето (+/-) | D199: 80-00 | E199: =SUBTOTAL(9,E200:E201) -> -24298140 | F199: -18879553 | G199: =SUBTOTAL(9,G200:G201) -> -5621374 | H199: -1955830 | I199: -11302349 | J199: 0 | K199: 0 | L199: 0 | M199: 0 | N199: 0 | O199: 0 | P199: 0 | Q199: 0 | R199: 0 | S199: 0 | T199: 0 | U199: 0 | V199: 0 | W199: 0 | X199: 0 | Y199: -5418587 | Z199: -5418587 | AA199: 0 | AB199: 0 | AC199: 0 | AD199: 0 | AE199: 0 | AK199: 0
A200: 0 | C200: Получени заеми (+) | E200: =F200+Y200 -> 0 | F200: =SUM(G200:X200) -> 0 | Y200: =SUM(Z200:AE200) -> 0 | AK200: 1
... 1031 more rows

Sheet Помощ
B2: ПОМОЩ ПО МАКЕТА
B3: ЗА ДЪРЖАВНИТЕ ИНВЕСТИЦИОННИ ЗАЕМИ
B5: Попълват се плащанията по държавните инвестиционни заеми по видове, включително и за заемите с краен бенефициент търговско дружество.
B7: С бутона Open All Columns Zaemi се отварят всички колони в приложението. Всеки един проект се посочва в отделна колона от приложението.
B9: Тази форма се попълва както за ежемесечния, така и за тримесечния отчет на ДИЗ.

Sheet Inf (hidden)
A1: 1 | B1: 0
A2: Hide Rows
A3: All Rows
A6: Hide Columns
A7: Open All Columns Zaemi
A9: RowMVProv | B9: =ROW(MV!AF196) -> 196 | C9: LastCol | D9: =COLUMN(MV!AF1)-1 -> 31 | E9: LastRow | F9: =ROW(MV!AF1231)-1 -> 1230
